Cogmind - Beta 9.6 @@@ ROGUE MODE // 2020.05.17 @ 18:23:37 Player: TheGreatBorealis Result: Destroyed by S-27 Virus with Autogun Performance ------------- Evolutions (4) 2000 Regions Visited (5) 1000 Robots Destroyed (39) 195 Value Destroyed (1287) 1287 Prototype IDs (1) 20 Alien Tech Used (0) 0 Bonus (0) 0 TOTAL SCORE: 4502 Bonus ------- None Cogmind --------- Core Integrity 0/850 Matter 259/300 Energy 100/100 System Corruption 0% Temperature Cool (0) Movement Core (50) Location -6/Factory Parts ------- > --- POWER (2) -------- (None) > --- PROPULSION (4) --- (None) > --- UTILITY (5) ------ Advanced Signal Interpreter > --- WEAPON (4) ------- (None) > --- INVENTORY (4) ---- Improved Heat Sink Medium Storage Unit Peak State ------------ > --- POWER ------------ Improved Deuterium Engine > --- PROPULSION ------- Aluminum Leg Improved Aluminum Leg Improved Aluminum Leg Carbon-fiber Leg > --- UTILITY ---------- Improved Heat Sink Medium Storage Unit Visual Processing Unit Reactive Plating > --- WEAPON ----------- Lightning Gun Pulse Rifle Pulse Rifle Pulse Rifle > --- INVENTORY -------- Light Deuterium Engine Light Deuterium Engine Aluminum Leg Aluminum Leg Heat Sink Improved Cooling System Medium Storage Unit Advanced Signal Interpreter [Rating: 35] Favorites ----------- Power Light Deuterium Engine Engine Light Deuterium Engine Power Core Light Nuclear Core Propulsion Aluminum Leg Leg Aluminum Leg Utility Medium Storage Unit Device Improved Heat Sink Storage Medium Storage Unit Processor Visual Processing Unit Protection Reactive Plating Weapon Pulse Rifle Energy Gun Pulse Rifle Energy Cannon Heavy Particle Cannon Ballistic Gun Assault Rifle Ballistic Cannon Assault Cannon Build | -11 -10 -9 -8 -7 -6 ------- Run | Scr Mat Mat Mat Fac Fac Slots Evolved 8 | . . 2 2 2 2 Power 1 | . . . . . 1 Propulsion 2 | . . 2 . . . Utility 3 | . . . 1 1 1 Weapon 2 | . . . 1 1 . Parts Attached 60 | 6 4 14 18 10 8 Power 6 | 1 . 1 2 1 1 Engine 4 | 1 . . 1 1 1 Core 2 | . . 1 1 . . Reactor . | . . . . . . Propulsion 19 | 2 2 3 4 4 4 Treads . | . . . . . . Leg 19 | 2 2 3 4 4 4 Wheel . | . . . . . . Hover . | . . . . . . Flight . | . . . . . . Utility 12 | 1 1 2 4 1 3 Device 6 | . 1 1 3 . 1 Storage 3 | 1 . 1 . . 1 Processor 2 | . . . . 1 1 Hackware . | . . . . . . Protection 1 | . . . 1 . . Artifact . | . . . . . . Weapon 23 | 2 1 8 8 4 . Energy Gun 19 | 2 . 7 6 4 . Energy Cannon 2 | . . . 2 . . Ballistic Gun 1 | . 1 . . . . Ballistic Cannon 1 | . . 1 . . . Launcher . | . . . . . . Special Weapon . | . . . . . . Impact Weapon . | . . . . . . Slashing Weapon . | . . . . . . Piercing Weapon . | . . . . . . Special Melee Weapon . | . . . . . . Unidentified Prototypes 1 | . . 1 . . . Parts Lost 29 | . 1 3 4 15 6 Power 3 | . . . 1 1 1 Propulsion 12 | . . 1 . 7 4 Utility 5 | . . . 2 2 1 Weapon 9 | . 1 2 1 5 . Highest Loss Streak 14 | . 1 3 3 14 6 Average Slot Usage (%) 85 | . 94 96 98 72 30 Engine 6 | . 14 8 4 5 5 Core 2 | . . 2 4 . . Leg 31 | . 28 43 36 21 14 Device 9 | . 9 10 12 5 2 Storage 8 | . 14 11 9 5 . Processor 1 | . . . . 5 6 Protection 2 | . . . 5 4 . Energy Gun 18 | . 21 18 21 20 . Energy Cannon 1 | . . . 3 . . Naked Turns 101 | . . . . 101 . Heaviest Build 42 | 13 14 22 33 42 6 Greatest Support 51 | 20 20 40 51 51 40 Greatest Overweight (x) 2 | 1 . . . 2 . Average Overweight (x) . | . . . . . . Largest Inventory Capacity 8 | 6 6 8 8 8 8 Average Capacity 7 | 4 6 7 8 7 4 Most Carried 8 | 2 6 8 8 8 3 Average Carried 6 | 1 4 7 7 6 1 Final Capacity 8 | 6 6 8 8 4 4 Final Carried 8 | 2 6 8 8 4 2 Class Distribution -------------------- 36% | Tank 29% | Mutant 16% | Scavenger-Mutant 13% | Scavenger-Skirmisher 3% | Skirmisher Dominant Class ---------------- Mutant | -10/Materials Scavenger-Mutant | -9/Materials Tank | -8/Materials Tank | -7/Factory Mutant | -6/Factory Resources | -11 -10 -9 -8 -7 -6 ----------- Run | Scr Mat Mat Mat Fac Fac Matter Collected 649 | 73 134 217 180 45 . Remotely . | . . . . . . Salvage Created 1520 | . 134 329 836 221 . Parts 87 | . 10 16 50 11 . Haulers Intercepted . | . . . . . . Recyclers Shooed . | . . . . . . Parts Field Recycled . | . . . . . . Retrieved Matter . | . . . . . . Parts Self-Destructed . | . . . . . . Prevented . | . . . . . . Kills | -11 -10 -9 -8 -7 -6 ------- Run | Scr Mat Mat Mat Fac Fac Combat Hostiles Destroyed 34 | . 5 6 19 4 . Guns 29 | . 5 6 14 4 . Cannons 4 | . . . 4 . . Classes Destroyed 8 | . 2 3 1 2 . Worker 1 | . . . . 1 . Builder 1 | . . 1 . . . Watcher 3 | . . 1 2 . . Swarmer 9 | . 3 . 6 . . Grunt 12 | . 2 3 4 3 . Duelist 1 | . . . . 1 . Sentry 11 | . . 3 8 . . Hunter 1 | . . . 1 . . Best Kill Streak 4 | . 3 3 4 3 . Combat Bots Only 4 | . 3 3 4 2 . Max Kills in Single Turn 2 | . 2 1 1 2 . Gunslinging 1 | . 1 . . . . Exploded . | . . . . . . Melee . | . . . . . . Uniques/NPCs Destroyed . | . . . . . . Combat | -11 -10 -9 -8 -7 -6 -------- Run | Scr Mat Mat Mat Fac Fac Damage Taken 4340 | . 179 362 931 1564 1304 Core 1732 | . 28 64 136 643 861 Absorbed by Shields . | . . . . . . Core Remaining (%) 71 | 100 88 84 75 8 . Volleys Fired 95 | . 11 23 43 18 . Largest 4 | . 2 2 3 4 . Hottest 244 | . 100 112 189 244 . Shots Fired 233 | . 20 40 124 49 . Gun 206 | . 20 40 97 49 . Cannon 27 | . . . 27 . . Launcher . | . . . . . . Special . | . . . . . . Kinetic 6 | . 3 . 3 . . Thermal 180 | . 17 39 90 34 . Explosive . | . . . . . . Electromagnetic 47 | . . 1 31 15 . Robot Hit Streak 24 | . 6 14 24 15 . Robot Miss Streak 5 | . 1 5 5 2 . Penetration Max . | . . . . . . Secondary Targets 2 | . 1 . . 1 . Max Gunslinging Chain 1 | . 1 . . 1 . Shots Hit Robots 167 | . 14 32 85 36 . Core Hits 67 | . 8 13 34 11 1 Critical Hits . | . . . . . . Critical Kills . | . . . . . . Critical Parts Destroyed . | . . . . . . Melee Attacks . | . . . . . . Impact . | . . . . . . Slashing . | . . . . . . Piercing . | . . . . . . Sneak Attacks . | . . . . . . Combat Hostiles . | . . . . . . Follow-up Attacks . | . . . . . . Damage Inflicted 2898 | . 153 553 1587 601 4 Guns 2539 | . 153 514 1273 599 . Cannons 305 | . . . 305 . . Explosions 39 | . . 39 . . . Melee . | . . . . . . Ramming 15 | . . . 9 2 4 Kinetic 119 | . 39 . 80 . . Thermal 1994 | . 114 517 1016 347 . Explosive . | . . . . . . Electromagnetic 770 | . . 36 482 252 . Impact . | . . . . . . Slashing . | . . . . . . Piercing . | . . . . . . Highest Corruption 4 | . . . . 4 . Average Corruption 1 | . . . . 1 . Corruption Purged . | . . . . . . Effects 2 | . . . . 2 . Energy Discharges 1 | . . . . 1 . Targeting Errors 1 | . . . . 1 . Overload Shots . | . . . . . . Overflow Damage 15 | . . . 15 . . Projectiles 15 | . . . 15 . . Explosions . | . . . . . . Melee . | . . . . . . Knockbacks . | . . . . . . Impact . | . . . . . . Kinetic . | . . . . . . Secondary . | . . . . . . Self-Inflicted Damage 40 | . . 39 1 . . Shots 1 | . . 1 . . . Rammed 2 | . . . 2 . . Targets Rammed 8 | . . . 5 1 2 Kicked 6 | . . . 3 1 2 Crushed . | . . . . . . Highest Temperature 566 | . 195 36 566 417 . Average Temperature 168 | . 87 15 161 289 . Received Heat Transfer 834 | . 45 126 252 384 27 Effects 12 | . . . 5 7 . Shutdowns 2 | . . . 1 1 . Energy Bleed 1 | . . . 1 . . Interference 6 | . . . 2 4 . Matter Decay 1 | . . . . 1 . Short Circuit 1 | . . . . 1 . Damage (minor) 1 | . . . 1 . . Siege Activations . | . . . . . . Robots Corrupted . | . . . . . . Combat Hostiles . | . . . . . . Parts Fried 3 | . . 1 2 . . Impact Corruptions . | . . . . . . Robots Melted 1 | . . . 1 . . Combat Hostiles 1 | . . . 1 . . Parts Melted 5 | . . 1 4 . . Heat Transferred 4366 | . 333 1221 2072 740 . Parts Sabotaged . | . . . . . . Parts Stolen . | . . . . . . Parts Stripped . | . . . . . . Power Chain Reactions 1 | . . 1 . . . Missiles Intercepted . | . . . . . . Alert | -11 -10 -9 -8 -7 -6 ------- Run | Scr Mat Mat Mat Fac Fac Peak Influence 402 | . 125 275 402 177 36 Average Influence 153 | . 85 141 239 102 22 Maximum Alert Level 2 | . . 1 2 . . Low Security (%) 66 | 100 100 69 33 100 100 Level 1 29 | . . 30 58 . . Level 2 3 | . . . 8 . . Level 3 . | . . . . . . Level 4 . | . . . . . . Level 5 . | . . . . . . High Security . | . . . . . . Max Security . | . . . . . . Squads Dispatched 8 | . . . 3 3 2 Investigation 1 | . . . 1 . . Extermination 2 | . . . . 1 1 Reinforcement 5 | . . . 2 2 1 Assault . | . . . . . . Garrison . | . . . . . . Intercept . | . . . . . . Construction Impeded . | . . . . . . Haulers Reinforced . | . . . . . . Stealth | -11 -10 -9 -8 -7 -6 --------- Run | Scr Mat Mat Mat Fac Fac Distress Signals 7 | . . . 3 3 1 Communications Jammed . | . . . . . . Distress Signals . | . . . . . . Times Spotted 96 | . 6 9 37 24 20 Peak Tracking Total 17 | . 3 3 7 17 15 Tactical Retreats 12 | . . . 3 4 5 Traps | -11 -10 -9 -8 -7 -6 ------- Run | Scr Mat Mat Mat Fac Fac Traps Triggered 3 | . . . 1 2 . Indirectly . | . . . . . . Trap Hack Attempts . | . . . . . . Triggered . | . . . . . . Disarmed . | . . . . . . Reprogrammed . | . . . . . . Reused . | . . . . . . Traps Extracted . | . . . . . . Installed . | . . . . . . Triggered . | . . . . . . Machines | -11 -10 -9 -8 -7 -6 ---------- Run | Scr Mat Mat Mat Fac Fac Machines Disabled . | . . . . . . Max in Single Turn . | . . . . . . Machines Sabotaged . | . . . . . . Garrisons Compromised . | . . . . . . Overloaded Fab Kills . | . . . . . . Fab Network Shutdowns . | . . . . . . Hacking | -11 -10 -9 -8 -7 -6 --------- Run | Scr Mat Mat Mat Fac Fac Machines Accessed 12 | . . 2 8 1 1 Terminals 9 | . . 2 6 1 . Fabricators 1 | . . . . . 1 Repair Stations . | . . . . . . Recycling Units . | . . . . . . Scanalyzers 2 | . . . 2 . . Garrison Access . | . . . . . . Total Hacks 18 | . . 3 12 1 2 Successful 13 | . . 2 9 . 2 Failed 5 | . . 1 3 1 . Catastrophic 1 | . . . . 1 . Database Lockouts . | . . . . . . Manual 6 | . . 1 4 1 . Terminals 12 | . . 3 8 1 . Fabricators 2 | . . . . . 2 Repair Stations . | . . . . . . Recycling Units . | . . . . . . Scanalyzers 4 | . . . 4 . . Garrison Access . | . . . . . . Terminal Hacks 7 | . . 2 5 . . Alert Level 1 | . . . 1 . . Unreport Threat 1 | . . . 1 . . Recall Investigation 1 | . . . 1 . . Recall Reinforcements 1 | . . . 1 . . Zone Layout 3 | . . 2 1 . . Fabricator Hacks 2 | . . . . . 2 Load Schematic 1 | . . . . . 1 Build 1 | . . . . . 1 Repair Station Hacks . | . . . . . . Recycling Unit Hacks . | . . . . . . Scanalyzer 4 | . . . 4 . . Insert Component 2 | . . . 2 . . Analyze 2 | . . . 2 . . Garrison Access Hacks . | . . . . . . Unauthorized Hacks . | . . . . . . Terminals . | . . . . . . Fabricators . | . . . . . . Repair Stations . | . . . . . . Recycling Units . | . . . . . . Scanalyzers . | . . . . . . Garrison Access . | . . . . . . Data Cores Recovered . | . . . . . . Used . | . . . . . . Hacking Detections 7 | . . 1 5 1 . Full Trace Events . | . . . . . . Feedback Events . | . . . . . . Feedback Blocked . | . . . . . . Robot Schematics Acquired . | . . . . . . Robots Built . | . . . . . . Matter . | . . . . . . Time . | . . . . . . Total Robot Build Rating . | . . . . . . Part Schematics Acquired 2 | . . . 2 . . Parts Built 3 | . . . . . 3 Matter 102 | . . . . . 102 Time 51 | . . . . . 51 Total Part Build Rating 3 | . . . . . 3 Parts Repaired . | . . . . . . Time . | . . . . . . Parts Recycled . | . . . . . . Recycled Matter . | . . . . . . Retrieved Matter . | . . . . . . Retrieved Components . | . . . . . . Parts Scanalyzed 2 | . . . 2 . . Part Schematics Acquired 2 | . . . 2 . . Parts Damaged . | . . . . . . Bothacking | -11 -10 -9 -8 -7 -6 ------------ Run | Scr Mat Mat Mat Fac Fac Used RIF Installer . | . . . . . . Robots Hacked . | . . . . . . Non-combat . | . . . . . . Combat . | . . . . . . Robot Hacks Applied . | . . . . . . Relay Couplers Released . | . . . . . . Robots Rewired . | . . . . . . Allies Hacked . | . . . . . . Hacks Repelled . | . . . . . . Allies | -11 -10 -9 -8 -7 -6 -------- Run | Scr Mat Mat Mat Fac Fac Total Allies . | . . . . . . Largest Group . | . . . . . . Highest-Rated Group . | . . . . . . Highest-Rated Ally . | . . . . . . Total Orders . | . . . . . . Ally Attacks . | . . . . . . Total Damage . | . . . . . . Kills . | . . . . . . Allies Corrupted . | . . . . . . Allies Melted . | . . . . . . Intel | -11 -10 -9 -8 -7 -6 ------- Run | Scr Mat Mat Mat Fac Fac Robot Analysis Total . | . . . . . . Derelict Logs Recovered . | . . . . . . Drone Launches . | . . . . . . Drone Recoveries . | . . . . . . Exploration | -11 -10 -9 -8 -7 -6 ------------- Run | Scr Mat Mat Mat Fac Fac Turns Passed 2804 | 48 304 475 1170 494 313 Spaces Moved 1833 | 34 200 281 631 436 251 Core 293 | 6 . . . 206 81 Treads . | . . . . . . Legs 1540 | 28 200 281 631 230 170 Wheels . | . . . . . . Hover . | . . . . . . Flight . | . . . . . . Fastest Speed 50 | 50 120 120 120 50 50 Average Speed 109 | 110 120 120 120 91 97 Slowest Speed 150 | 120 120 120 120 150 120 Overloaded Moves . | . . . . . . Propulsion Burnouts . | . . . . . . Robots Hopped . | . . . . . . Cave-ins Triggered . | . . . . . . Exploration Rate (%) 22 | 3 23 24 51 21 10 Regions Visited 5 Branch Regions . Pre-discovered Areas . | . . . . . . Known Exits Taken . | . . . . . . Unknown Exits Taken 5 | 1 1 1 1 1 . Scrap Searched . | . . . . . . Spaces Dug . | . . . . . . Terrain Destroyed 16 | . . 3 13 . . Melee . | . . . . . . Projectile 13 | . . . 13 . . AOE 3 | . . 3 . . . Actions | -11 -10 -9 -8 -7 -6 --------- Run | Scr Mat Mat Mat Fac Fac Total 2428 | 41 245 379 950 496 317 Wait 373 | . 20 47 230 22 54 Move 1828 | 33 199 280 630 435 251 Hop . | . . . . . . Pick Up 28 | 2 7 5 8 5 1 Fast Attach 28 | 6 1 7 9 1 4 Attach 18 | . 1 4 3 6 4 Detach 3 | . . 2 . . 1 Swap 14 | . 2 3 6 3 . Drop 33 | . 4 8 16 5 . Fire 95 | . 11 23 43 18 . Melee . | . . . . . . Ram . | . . . . . . Kick 8 | . . . 5 1 2 Crush . | . . . . . . Escape Stasis . | . . . . . . Rewire . | . . . . . . Trap . | . . . . . . Miscellaneous . | . . . . . . Route ------- -11/Scrapyard -10/Materials (discovered 2 exits: *Mat / [*Min]) -9/Materials -8/Materials -7/Factory -6/Factory History --------- Turn | Location | Event 10 | -11/Scrapyard | Discovered new exit (range 16) 49 | -11/Scrapyard | Entered Materials 83 | -10/Materials | Discovered new exit (range 11) 316 | -10/Materials | Build established: Mutant 326 | -10/Materials | Discovered new exit (range 10) 353 | -10/Materials | Entered another Materials area 353 | -9/Materials | Evolved 2 slots: Propulsion x2 696 | -9/Materials | Build established: Scavenger-Mutant 744 | -9/Materials | Lost 3 parts (1n2w) 798 | -9/Materials | Discovered new exit (range 13) 828 | -9/Materials | Entered another Materials area 828 | -8/Materials | Evolved 2 slots: Utility x1, Weapon x1 1172 | -8/Materials | Build established: Scavenger-Skirmisher 1348 | -8/Materials | Lost 3 parts (2u1w) 1629 | -8/Materials | Build established: Tank 1939 | -8/Materials | Discovered new exit (range 16) 1998 | -8/Materials | Entered Factory 1998 | -7/Factory | Evolved 2 slots: Utility x1, Weapon x1 2391 | -7/Factory | Core integrity fell below 50% 2391 | -7/Factory | Released all parts (2) 2411 | -7/Factory | Lost 14 parts (1p6n2u5w) 2442 | -7/Factory | Core integrity fell below 20% 2485 | -7/Factory | Discovered new exit (range 16) 2492 | -7/Factory | Entered another Factory area 2492 | -6/Factory | Evolved 2 slots: Power x1, Utility x1 2598 | -6/Factory | Fabricated Aluminum Leg (x3) 2644 | -6/Factory | Build established: Mutant 2790 | -6/Factory | Spotted B-75 Beast 2792 | -6/Factory | Core integrity fell below 50% 2803 | -6/Factory | Core integrity fell below 20% 2805 | -6/Factory | Destroyed by S-27 Virus with Autogun Last Messages --------------- 02692_ K-01 Serf latches onto B-48 Gladiator. 02692_ K-01 Serf pushes B-48 Gladiator. 02699_ ALERT: Hostiles spotted, dispatching reinforcements to Terminal F002. 02733_ Kicked S-27 Virus out of the way. 02742_ ALERT: Rogue bot located, Programmers report to Factory Zone 3X. 02744_ Aluminum Leg destroyed. 02750_ Lgt. Deuterium Engine destroyed. 02753_ K-01 Serf cleans the Power Conduit. 02760_ Aluminum Leg destroyed. 02760_ K-01 Serf collects debris. 02763_ Kicked S-27 Virus out of the way. 02764_ Aluminum Leg destroyed. 02764_ K-01 Serf cleans the Power Conduit. 02766_ W-25 Informer sends out distress signal. 02784_ Focal Shield destroyed. 02791_ Knocked back. 02795_ C-30 ARC bursts open, deploying its payload. 02795_ H-66 Slayer unfolds itself. 02800_ Slug penetrates Wall. Map ----- +----------------------------------------------------+ | ?????????????????????????????????????????????????? | | ?????????????????????????????????????????????????? | | ?????????????????????????????????????????????????? | | ?????????????????????????????????????????????????? | | ?????????????????????????????????????????????????? | | ?????????????????????????????????????????????????? | | ?????????????????????????????????????????????????? | | ?????????????????????????????????????????????????? | | ##???????????????????????????????????????????????? | | ????????????????????????????????????????????????? | | "????????????????????????????????????????????????? | | "" #?????????????????????????????????????????????? | | "" #?????????????????????????????????????????????? | | "" #?????????????????????????????????????????????? | | #??????????##?????????????????????????????????? | | #????????? ????????????????????????????????? | | #??????? ????????????????????????????????? | | #?????? ????????????????????????????????? | | "" #?#### ???????????????????????????????? | | "" +? ????????????????????????????????? | | # "#??????????????????????????????????? | | #### "%#??????????????????????????????????? | | "#??????????????????????????????????? | | #??????????????????????????????????? | | "" ##############?????????????????????? | | " # @ #?????????????????????? | | "F # #?????????????????????? | | ## "" " " " #ss #?????????????????????? | | ?# " " " #s #?????????????????????? | | ?# " " " #ss #?????????????????????? | | ## " " " ;ss #?????????????????????? | | ## " " " + s #?????????????????????? | | ## " " " # #?????????????????????? | | ## " " " # #?????????????????????? | | ## " " " # #?????????????????????? | | ## " " " # #?????????????????????? | | ## # #?????????????????????? | | ## " " " " #"############?????????????????????? | | ## " " " " " ?????????????????????????????????? | | ## " " " " ""#????????????????????????????????? | | ## " " " " #????????????????????????????????? | | ## " " " " #????????????????????????????????? | | ## " " " " ########???????????????????????????? | | " " " " #???????????????????????????? | | " " " " #???????????????????????????? | | " " " " ##########??????????????????? | | # ??????????????????? | | # """"""""?????????????????? | | ####+########### # ?????????????????? | | #???# # """""""""????????????????? | +----------------------------------------------------+ Best States ------------- Heat Dissipation 48 Energy Generation 16 Energy Capacity 290 Matter Stores 300 Matter Capacity 300 Sight Range 18 Robot Scan Range 10 Terrain Scan Density 10 Armor Coverage 150 Resistance: KI 20 Evasion (%) 50 Item Schematics ----------------- Aluminum Leg | -8/Materials | Scanalyzed Lgt. Deuterium Engine | -8/Materials | Scanalyzed Robot Schematics ------------------ None Fabricated ------------ Aluminum Leg | x3 | -6/Factory Alien Tech Used ----------------- None Achievements -------------- None Challenges ------------ None Game ------ Seed AutogunSupersonicSegregator Manual? 0 Play Time 00:35:03 Cumulative 21.4 hours Start 2020.05.17 @ 17:48:51 End 2020.05.17 @ 18:23:37 Sessions 1 Manual Loads 0 Difficulty Rogue Special Mode None Game No. 44 Rogue 44 Adventurer 0 Explorer 0 Win Type - Total 0 Types 0/0/0/0/0/0/0 Lore% 19 Gallery% 28 Achievement% 23 Wizard Run 0 Options --------- ASCII 0 Keyboard 1 Movement Numpad Keybinds 0 Fullscreen 2 Font 18/Terminus Map View 76x50 Tactical HUD 1 Map Filters NONE Filters NONE Steam 1 RUN: e3010179-50d9-49ce-af3e-f6f0733fef91